fUSD/lending_fUSD_20250507
["ID","MTS","AMOUNT","RATE_DAILY","PERIOD"]
[360193097,1746614812519,-300.0,0.00019527,2]
[360193098,1746614812547,-305.0226109,0.00019527,2]
[360193099,1746614812574,-450.0,0.00019527,2]
[360193100,1746614812601,-450.0,0.00019527,2]
[360193101,1746614812631,-507.91,0.00019527,2]
[360193102,1746614812657,-507.91,0.00019527,2]
[360193103,1746614812686,-450.0,0.00019527,2]
[360193104,1746614812715,-450.0,0.00019527,2]
[360193105,1746614812744,-1357.82,0.00019527,2]
[360193106,1746614812773,-1357.82,0.00019527,2]
[360193107,1746614812801,-563.56,0.00019527,2]
[360193108,1746614812831,-450.0,0.00019527,2]
[360193109,1746614812860,-450.0,0.00019527,2]
[360193110,1746614812887,-450.0,0.00019527,2]
[360193111,1746614812916,-450.0,0.00019527,2]
[360193112,1746614812943,-677.35,0.00019527,2]
[360193113,1746614812970,-450.0,0.00019527,2]
[360193114,1746614812997,-1291.49,0.00019527,2]
[360193115,1746614813022,-468.89651773,0.00019527,2]
[360193116,1746614813049,-450.0,0.00019527,2]
[360193117,1746614813076,-450.0,0.00019527,2]
[360193118,1746614813104,-569.81802045,0.00019527,2]
[360193119,1746614813131,-450.0,0.00019527,2]
[360193120,1746614813158,-450.0,0.00019527,2]
[360193121,1746614813188,-450.0,0.00019527,2]
[360193122,1746614813225,-1416.68,0.00019527,2]
[360193123,1746614813262,-1416.68,0.00019527,2]
[360193124,1746614813299,-450.0,0.00019527,2]
[360193125,1746614813335,-224.88,0.00019527,2]
[360193126,1746614813369,-450.0,0.00019527,2]
[360193127,1746614813404,-450.0,0.00019527,2]
[360193128,1746614813442,-1453.62,0.00019527,2]
[360193129,1746614813479,-450.0,0.00019527,2]
[360193130,1746614813514,-450.0,0.00019527,2]
[360193131,1746614813549,-602.84,0.00019527,2]
[360193132,1746614813585,-602.84,0.00019527,2]
[360193133,1746614813619,-450.0,0.00019527,2]
[360193134,1746614813653,-450.0,0.00019527,2]
[360193135,1746614813686,-450.0,0.00019527,2]
[360193136,1746614813719,-560.16,0.00019527,2]
[360193137,1746614813756,-665.4,0.00019527,2]
[360193138,1746614813788,-665.4,0.00019527,2]
[360193139,1746614813824,-1856.77,0.00019527,2]
[360193140,1746614813856,-450.0,0.00019527,2]
[360193141,1746614813889,-450.0,0.00019527,2]
[360193142,1746614813923,-504.81,0.00019527,2]
[360193143,1746614813955,-450.0,0.00019527,2]
[360193144,1746614813987,-450.0,0.00019527,2]
[360193145,1746614814018,-450.0,0.00019527,2]
[360193146,1746614814049,-450.0,0.00019527,2]
[360193147,1746614814081,-70822.78,0.00019527,2]
[360193148,1746614814113,-450.0,0.00019527,2]
[360193149,1746614814145,-450.0,0.00019527,2]
[360193150,1746614814179,-450.0,0.00019527,2]
[360193151,1746614814213,-450.0,0.00019527,2]
[360193152,1746614814246,-450.0,0.00019527,2]
[360193153,1746614814281,-801.16,0.00019527,2]
[360193154,1746614814313,-590.12,0.00019527,2]
[360193155,1746614814345,-590.12,0.00019527,2]
[360193156,1746614814380,-495.22505157,0.00019527,2]
[360193157,1746614814413,-616.27,0.00019527,2]
[360193158,1746614814447,-616.27,0.00019527,2]
[360193159,1746614814482,-1318.56,0.00019527,2]
[360193160,1746614814515,-1318.56,0.00019527,2]
[360193161,1746614814547,-545.29,0.00019527,2]
[360193162,1746614814579,-545.29,0.00019527,2]
[360193163,1746614814613,-299.56976096,0.00019527,2]
[360193164,1746614814646,-1285.39,0.00019527,2]
[360193165,1746614814678,-151.0,0.00019527,2]
[360193166,1746614814709,-450.0,0.00019527,2]
[360193167,1746614814744,-450.0,0.00019527,2]
[360193168,1746614814777,-520.25,0.00019527,2]
[360193169,1746614814811,-520.25,0.00019527,2]
[360193170,1746614814846,-706.91,0.00019527,2]
[360193171,1746614814880,-706.91,0.00019527,2]
[360193172,1746614814913,-995.8,0.00019527,2]
[360193173,1746614814949,-995.8,0.00019527,2]
[360193174,1746614814980,-2009.91,0.00019527,2]
[360193175,1746614815012,-450.0,0.00019527,2]
[360193176,1746614815044,-450.0,0.00019527,2]
[360193177,1746614815077,-450.0,0.00019527,2]
[360193178,1746614815110,-470.09,0.00019527,2]
[360193179,1746614815142,-2795.86,0.00019527,2]
[360193180,1746614815176,-450.0,0.00019527,2]
[360193181,1746614815211,-522.38,0.00019527,2]
[360193182,1746614815245,-522.38,0.00019527,2]
[360193183,1746614815280,-540.25,0.00019527,2]
[360193184,1746614815314,-540.25,0.00019527,2]
[360193185,1746614815346,-862.74,0.00019527,2]
[360193186,1746614815381,-862.74,0.00019527,2]
[360193187,1746614815414,-500.29,0.00019527,2]
[360193188,1746614815449,-890.92,0.00019527,2]
[360193189,1746614815480,-500.29,0.00019527,2]
[360193190,1746614815511,-587.19,0.00019527,2]
[360193191,1746614815543,-586.43,0.00019527,2]
[360193192,1746614815579,-503.33,0.00019527,2]
[360193193,1746614815846,-503.33,0.00019527,2]
[360193194,1746614815889,-1826.21,0.00019527,2]
[360193195,1746614815919,-1695.43,0.00019527,2]
[360193196,1746614815946,-1826.21,0.00019527,2]
[360193197,1746614815973,-450.0,0.00019527,2]
[360193198,1746614815999,-518.51,0.00019527,2]
[360193199,1746614816026,-450.0,0.00019527,2]
[360193200,1746614816051,-450.0,0.00019527,2]
[360193201,1746614816079,-450.0,0.00019527,2]
[360193202,1746614816105,-450.0,0.00019527,2]
[360193203,1746614816131,-450.0,0.00019527,2]
[360193204,1746614816157,-450.0,0.00019527,2]
[360193205,1746614816184,-450.0,0.00019527,2]
[360193206,1746614816211,-450.0,0.00019527,2]
[360193207,1746614816239,-544.16,0.00019527,2]
[360193208,1746614816267,-1391.75,0.00019527,2]
[360193209,1746614816297,-1391.75,0.00019527,2]
[360193210,1746614816323,-526.61,0.00019527,2]
[360193211,1746614816349,-450.0,0.00019528,2]
[360193212,1746614816376,-450.0,0.00019528,2]
[360193213,1746614816401,-475.88,0.00019528,2]
[360193214,1746614816427,-475.88,0.00019528,2]
[360193215,1746614816454,-151.0,0.00019528,2]
[360193216,1746614816482,-151.0,0.00019528,2]
[360193217,1746614816508,-151.0,0.00019528,2]
[360193218,1746614816535,-151.0,0.00019528,2]
[360193219,1746614816562,-151.0,0.00019528,2]
[360193220,1746614816588,-151.0,0.00019528,2]
[360193221,1746614816614,-824.65,0.00019528,2]
[360193222,1746614816640,-824.65,0.00019528,2]
[360193223,1746614816667,-1103.82,0.00019528,2]
[360193224,1746614816693,-1103.82,0.00019528,2]
[360193225,1746614816720,-805.85,0.00019528,2]
[360193226,1746614816746,-805.85,0.00019528,2]
[360193227,1746614816772,-906.9,0.00019528,2]
[360193228,1746614816798,-906.9,0.00019528,2]
[360193229,1746614816824,-157.305426,0.00019528,2]
[360193230,1746614816850,-157.305426,0.00019528,2]
[360193231,1746614816876,-157.305426,0.00019528,2]
[360193232,1746614816902,-512.42,0.00019528,2]
[360193233,1746614816928,-512.42,0.00019528,2]
[360193234,1746614816954,-157.305426,0.00019528,2]
[360193235,1746614816979,-157.305426,0.00019528,2]
[360193236,1746614817007,-157.305426,0.00019528,2]
[360193237,1746614817034,-745.46,0.00019528,2]
[360193238,1746614817060,-745.46,0.00019528,2]
[360193239,1746614817085,-450.0,0.00019528,2]
[360193240,1746614817111,-450.0,0.00019528,2]
[360193241,1746614817136,-748.09,0.00019528,2]
[360193242,1746614817161,-748.09,0.00019528,2]
[360193243,1746614817187,-510.55,0.00019528,2]
[360193244,1746614817213,-510.55,0.00019528,2]
[360193245,1746614817240,-450.0,0.00019528,2]
[360193246,1746614817266,-450.0,0.00019528,2]
[360193247,1746614817291,-450.0,0.00019528,2]
[360193248,1746614817317,-598.62892004,0.00019528,2]
[360193249,1746614817343,-450.0,0.00019528,2]
[360193250,1746614817371,-450.0,0.00019528,2]
[360193251,1746614817397,-199.011719,0.00019528,2]
[360193252,1746614817425,-450.0,0.00019528,2]
[360193253,1746614817453,-199.011719,0.00019528,2]
[360193254,1746614817479,-450.0,0.00019528,2]
[360193255,1746614817505,-199.011719,0.00019528,2]
[360193256,1746614817531,-199.011719,0.00019528,2]
[360193257,1746614817557,-292.620736,0.00019528,2]
[360193258,1746614817584,-151.0,0.00019528,2]
[360193259,1746614817610,-151.0,0.00019528,2]
[360193260,1746614817636,-151.0,0.00019528,2]
[360193261,1746614817663,-151.0,0.00019528,2]
[360193262,1746614817690,-450.0,0.00019528,2]
[360193263,1746614817717,-450.0,0.00019528,2]
[360193264,1746614817744,-450.0,0.00019528,2]
[360193265,1746614817770,-450.0,0.00019528,2]
[360193266,1746614817796,-450.0,0.00019528,2]
[360193267,1746614817824,-450.0,0.00019528,2]
[360193268,1746614817851,-500.0,0.00019528,2]
[360193269,1746614817877,-500.0,0.00019528,2]
[360193270,1746614817905,-450.0,0.00019528,2]
[360193271,1746614817931,-450.0,0.00019528,2]
[360193272,1746614817957,-469.39,0.00019528,2]
[360193273,1746614817983,-469.39,0.00019528,2]
[360193274,1746614818009,-525.82,0.00019528,2]
[360193275,1746614818035,-525.82,0.00019528,2]
[360193276,1746614818061,-151.0,0.00019528,2]
[360193277,1746614818087,-151.0,0.00019528,2]
[360193278,1746614818112,-198.42536783,0.00019528,2]
[360193279,1746614818138,-151.0,0.00019528,2]
[360193280,1746614818164,-278.994,0.00019528,2]
[360193281,1746614818192,-1152.2,0.00019528,2]
[360193282,1746614818223,-1152.2,0.00019528,2]
[360193283,1746614818252,-450.0,0.00019528,2]
[360193284,1746614818283,-325.280083,0.00019528,2]
[360193285,1746614818308,-450.0,0.00019528,2]
[360193286,1746614818334,-325.280083,0.00019528,2]
[360193287,1746614818361,-325.280083,0.00019528,2]
[360193288,1746614818388,-325.280083,0.00019528,2]
[360193289,1746614818414,-325.280083,0.00019528,2]
[360193290,1746614818442,-325.280083,0.00019528,2]
[360193291,1746614818468,-325.280083,0.00019528,2]
[360193292,1746614818494,-325.280086,0.00019528,2]
[360193293,1746614818519,-151.0,0.00019528,2]
[360193294,1746614818546,-450.0,0.00019528,2]
[360193295,1746614818572,-151.0,0.00019528,2]
[360193296,1746614818600,-450.0,0.00019528,2]
[360193297,1746614818627,-151.0,0.00019528,2]
[360193298,1746614818653,-151.0,0.00019528,2]
[360193299,1746614818681,-161.137611,0.00019528,2]
[360193300,1746614818706,-161.137611,0.00019528,2]
[360193301,1746614818732,-161.137611,0.00019528,2]
[360193302,1746614818758,-161.137611,0.00019528,2]
[360193303,1746614818784,-559.23,0.00019528,2]
[360193304,1746614818810,-559.23,0.00019528,2]
[360193305,1746614818840,-161.137611,0.00019528,2]
[360193306,1746614818867,-161.137611,0.00019528,2]
[360193307,1746614818892,-161.137611,0.00019528,2]
[360193308,1746614818918,-161.13761,0.00019528,2]
[360193309,1746614818943,-450.0,0.00019528,2]
[360193310,1746614818969,-450.0,0.00019528,2]
[360193311,1746614818995,-560.84,0.00019528,2]
[360193312,1746614819020,-560.84,0.00019528,2]
[360193313,1746614819045,-450.0,0.00019528,2]
[360193314,1746614819071,-450.0,0.00019528,2]
[360193315,1746614819098,-450.0,0.00019528,2]
[360193316,1746614819123,-450.0,0.00019528,2]
[360193317,1746614819149,-454.51,0.00019528,2]
[360193318,1746614819175,-454.51,0.00019528,2]
[360193319,1746614819202,-219.277398,0.00019528,2]
[360193320,1746614819230,-219.277398,0.00019528,2]
[360193321,1746614819257,-219.277398,0.00019528,2]
[360193322,1746614819284,-219.277398,0.00019528,2]
[360193323,1746614819310,-219.277398,0.00019528,2]
[360193324,1746614819337,-219.277398,0.00019528,2]
[360193325,1746614819363,-219.277398,0.00019528,2]
[360193326,1746614819390,-219.2774,0.00019528,2]
[360193327,1746614819417,-450.0,0.00019528,2]
[360193328,1746614819445,-450.0,0.00019528,2]
[360193329,1746614819638,-1000.0,0.00019528,2]
[360193330,1746614819667,-1006.04000487,0.00019528,2]
[360193331,1746614819696,-450.0,0.00019528,2]
[360193332,1746614819723,-507.91,0.00019528,2]
[360193333,1746614819749,-507.91,0.00019528,2]
[360193334,1746614819777,-450.0,0.00019528,2]
[360193335,1746614819803,-450.0,0.00019528,2]
[360193336,1746614819832,-415.07,0.00019528,2]
[360193337,1746614819859,-450.0,0.00019528,2]
[360193338,1746614819884,-155.605701,0.00019528,2]
[360193339,1746614819911,-155.605701,0.00019528,2]
[360193340,1746614819937,-155.605701,0.00019528,2]
[360193341,1746614819962,-155.605701,0.00019528,2]
[360193342,1746614819988,-155.605701,0.00019528,2]
[360193343,1746614820014,-155.605701,0.00019528,2]
[360193344,1746614820041,-155.605701,0.00019528,2]
[360193345,1746614820070,-155.605701,0.00019528,2]
[360193346,1746614820098,-717.55,0.00019528,2]
[360193347,1746614820125,-717.55,0.00019528,2]
[360193348,1746614820155,-1357.82,0.00019528,2]
[360193349,1746614820184,-450.0,0.00019528,2]
[360193350,1746614820213,-450.0,0.00019528,2]
[360193351,1746614820245,-563.56,0.00019528,2]
[360193352,1746614820274,-450.0,0.00019528,2]
[360193353,1746614820301,-450.0,0.00019528,2]
[360193354,1746614820328,-450.0,0.00019528,2]
[360193355,1746614820354,-450.0,0.00019528,2]
[360193356,1746614820381,-450.0,0.00019528,2]
[360193357,1746614820409,-208.209373,0.00019528,2]
[360193358,1746614820436,-208.209373,0.00019528,2]
[360193359,1746614820469,-208.209373,0.00019528,2]
[360193360,1746614820498,-450.0,0.00019528,2]
[360193361,1746614820525,-208.20938,0.00019528,2]
[360193362,1746614820553,-450.0,0.00019528,2]
[360193363,1746614820582,-677.35,0.00019528,2]
[360193364,1746614820609,-677.35,0.00019528,2]
[360193365,1746614820637,-450.0,0.00019528,2]
[360193366,1746614820665,-450.0,0.00019528,2]
[360193367,1746614820693,-545.91,0.00019528,2]
[360193368,1746614820720,-545.91,0.00019528,2]
[360193369,1746614820747,-1427.77,0.00019528,2]
[360193370,1746614820774,-1427.77,0.00019528,2]
[360193371,1746614820801,-1291.49,0.00019528,2]
[360193372,1746614820834,-450.0,0.00019528,2]
[360193373,1746614820864,-450.0,0.00019528,2]
[360193374,1746614820892,-450.0,0.00019528,2]
[360193375,1746614820921,-450.0,0.00019528,2]
[360193376,1746614820948,-1743.72,0.00019528,2]
[360193377,1746614820974,-151.0,0.00019528,2]
[360193378,1746614821002,-450.0,0.00019528,2]
[360193379,1746614821030,-1743.72,0.00019528,2]
[360193380,1746614821056,-151.0,0.00019528,2]
[360193381,1746614821082,-151.0,0.00019528,2]
[360193382,1746614821108,-450.0,0.00019528,2]
[360193383,1746614821135,-450.0,0.00019528,2]
[360193384,1746614821160,-243.738589,0.00019528,2]
[360193385,1746614821188,-1416.68,0.00019528,2]
[360193386,1746614821214,-1019.86,0.00019528,2]
[360193387,1746614821242,-1019.86,0.00019528,2]
[360193388,1746614821269,-450.0,0.00019528,2]
[360193389,1746614821295,-450.0,0.00019528,2]
[360193390,1746614821322,-450.0,0.00019528,2]
[360193391,1746614821350,-1453.62,0.00019528,2]
[360193392,1746614821379,-1453.62,0.00019528,2]
[360193393,1746614821410,-450.0,0.00019528,2]
[360193394,1746614821439,-1885.11,0.00019528,2]
[360193395,1746614821469,-450.0,0.00019528,2]
[360193396,1746614821499,-1885.11,0.00019528,2]
[360193397,1746614821526,-805.8,0.00019528,2]
[360193398,1746614821554,-805.8,0.00019528,2]
[360193399,1746614821585,-151.0,0.00019528,2]
[360193400,1746614821628,-151.0,0.00019528,2]
[360193401,1746614821660,-151.0,0.00019528,2]
[360193402,1746614821691,-450.0,0.00019528,2]
[360193403,1746614821722,-450.0,0.00019528,2]
[360193404,1746614821751,-602.84,0.00019528,2]
[360193405,1746614821780,-450.0,0.00019528,2]
[360193406,1746614821808,-450.0,0.00019528,2]
[360193407,1746614821840,-151.0,0.00019528,2]
[360193408,1746614821869,-1750.11,0.00019528,2]
[360193409,1746614821898,-1750.11,0.00019528,2]
[360193410,1746614821926,-450.0,0.00019528,2]
[360193411,1746614821955,-450.0,0.00019528,2]
[360193412,1746614821982,-560.16,0.00019528,2]
[360193413,1746614822010,-450.0,0.00019528,2]
[360193414,1746614822039,-560.16,0.00019528,2]
[360193415,1746614822067,-450.0,0.00019528,2]
[360193416,1746614822096,-665.4,0.00019528,2]
[360193417,1746614822123,-450.0,0.00019528,2]
[360193418,1746614822149,-450.0,0.00019528,2]
[360193419,1746614822180,-1856.77,0.00019528,2]
[360193420,1746614822211,-1856.77,0.00019528,2]
[360193421,1746614822240,-3127.48,0.00019528,2]
[360193422,1746614822270,-3127.48,0.00019528,2]
[360193423,1746614822298,-450.0,0.00019528,2]
[360193424,1746614822325,-450.0,0.00019528,2]
[360193425,1746614822353,-683.57,0.00019528,2]
[360193426,1746614822380,-683.57,0.00019528,2]
[360193427,1746614822481,-450.0,0.00019528,2]
[360193428,1746614822509,-450.0,0.00019528,2]
[360193429,1746614822539,-504.81,0.00019528,2]
[360193430,1746614822566,-450.0,0.00019528,2]
[360193431,1746614822593,-450.0,0.00019528,2]
[360193432,1746614822621,-34732.98,0.00019528,2]
[360193433,1746614822648,-450.0,0.00019528,2]
[360193434,1746614822676,-34732.98,0.00019528,2]
[360193435,1746614822704,-450.0,0.00019528,2]
[360193436,1746614822732,-70822.78,0.00019528,2]
[360193437,1746614822759,-1274.51,0.00019528,2]
[360193438,1746614822785,-1274.51,0.00019528,2]
[360193439,1746614822811,-450.0,0.00019528,2]
[360193440,1746614822842,-450.0,0.00019528,2]
[360193441,1746614822869,-450.0,0.00019528,2]
[360193442,1746614822897,-450.0,0.00019528,2]
[360193443,1746614822924,-450.0,0.00019528,2]
[360193444,1746614822953,-450.0,0.00019528,2]
[360193445,1746614822980,-1140.0,0.00019528,2]
[360193446,1746614823007,-450.0,0.00019528,2]
[360193447,1746614823035,-450.0,0.00019528,2]
[360193448,1746614823063,-1140.0,0.00019528,2]
[360193449,1746614823092,-450.0,0.00019528,2]
[360193450,1746614823120,-450.0,0.00019528,2]
[360193451,1746614823149,-358.41,0.00019528,2]
[360193452,1746614823180,-575.04,0.00019528,2]
[360193453,1746614823211,-575.04,0.00019528,2]
[360193454,1746614823242,-450.0,0.00019528,2]
[360193455,1746614823272,-450.0,0.00019528,2]
[360193456,1746614823302,-9634.36,0.00019528,2]
[360193457,1746614823332,-9634.36,0.00019528,2]
[360193458,1746614823361,-585.23,0.00019528,2]
[360193459,1746614823389,-151.0,0.00019528,2]
[360193460,1746614823419,-151.0,0.00019528,2]
[360193461,1746614823450,-450.0,0.00019528,2]
[360193462,1746614823478,-450.0,0.00019528,2]
[360193463,1746614823506,-804.49,0.00019528,2]
[360193464,1746614823533,-804.49,0.00019528,2]
[360193465,1746614823563,-154.240803,0.00019528,2]
[360193466,1746614823592,-801.16,0.00019528,2]
[360193467,1746614823620,-866.48,0.00019528,2]
[360193468,1746614823647,-801.16,0.00019528,2]
[360193469,1746614823675,-866.48,0.00019528,2]
[360193470,1746614823702,-825.77,0.00019528,2]
[360193471,1746614823730,-825.77,0.00019528,2]
[360193472,1746614823758,-756.52,0.00019528,2]
[360193473,1746614823785,-279.161329,0.00019528,2]
[360193474,1746614823814,-756.52,0.00019528,2]
[360193475,1746614823843,-279.161329,0.00019528,2]
[360193476,1746614823870,-450.0,0.00019528,2]
[360193477,1746614823896,-450.0,0.00019528,2]
[360193478,1746614823924,-590.12,0.00019528,2]
[360193479,1746614823952,-15626.93,0.00019528,2]
[360193480,1746614823981,-15626.93,0.00019528,2]
[360193481,1746614824008,-616.27,0.00019528,2]
[360193482,1746614824036,-279.161329,0.00019528,2]
[360193483,1746614824063,-616.27,0.00019528,2]
[360193484,1746614824092,-279.161327,0.00019528,2]
[360193485,1746614824120,-450.0,0.00019528,2]
[360193486,1746614824148,-450.0,0.00019528,2]
[360193487,1746614824178,-1318.56,0.00019528,2]
[360193488,1746614824205,-450.0,0.00019528,2]
[360193489,1746614824232,-450.0,0.00019528,2]
[360193490,1746614824260,-7498.86,0.00019528,2]
[360193491,1746614824288,-7498.86,0.00019528,2]
[360193492,1746614824316,-545.29,0.00019528,2]
[360193493,1746614824343,-1285.39,0.00019528,2]
[360193494,1746614824370,-450.0,0.00019528,2]
[360193495,1746614824397,-450.0,0.00019528,2]
[360193496,1746614824424,-409.98611991,0.00019528,2]
[360193497,1746614824453,-151.0,0.00019528,2]
[360193498,1746614824482,-450.0,0.00019528,2]
[360193499,1746614824509,-450.0,0.00019528,2]
[360193500,1746614824536,-450.0,0.00019528,2]
[360193501,1746614824564,-450.0,0.00019528,2]
[360193502,1746614824592,-450.0,0.00019528,2]
[360193503,1746614824622,-450.0,0.00019528,2]
[360193504,1746614824652,-450.0,0.00019528,2]
[360193505,1746614824680,-1093.57,0.00019528,2]
[360193506,1746614824707,-1093.57,0.00019528,2]
[360193507,1746614824736,-520.25,0.00019528,2]
[360193508,1746614824764,-706.91,0.00019528,2]
[360193509,1746614824791,-814.49,0.00019528,2]
[360193510,1746614824822,-706.91,0.00019528,2]
[360193511,1746614824850,-995.8,0.00019528,2]
[360193512,1746614824878,-814.49,0.00019528,2]
[360193513,1746614824906,-2009.91,0.00019528,2]
[360193514,1746614824935,-2009.91,0.00019528,2]
[360193515,1746614824963,-450.0,0.00019528,2]
[360193516,1746614824993,-450.0,0.00019528,2]
[360193517,1746614825020,-653.21,0.00019528,2]
[360193518,1746614825048,-653.21,0.00019528,2]
[360193519,1746614825075,-470.09,0.00019528,2]
[360193520,1746614825104,-2795.86,0.00019528,2]
[360193521,1746614825131,-450.0,0.00019528,2]
[360193522,1746614825158,-450.0,0.00019528,2]
[360193523,1746614825186,-450.0,0.00019528,2]
[360193524,1746614825216,-522.38,0.00019528,2]
[360193525,1746614825245,-540.25,0.00019528,2]
[360193526,1746614825275,-1214.17,0.00019528,2]
[360193527,1746614825304,-1214.17,0.00019528,2]
[360193528,1746614825334,-862.74,0.00019528,2]
[360193529,1746614825364,-862.74,0.00019528,2]
[360193530,1746614825393,-500.29,0.00019528,2]
[360193531,1746614825424,-890.92,0.00019528,2]
[360193532,1746614825453,-587.19,0.00019528,2]
[360193533,1746614825482,-450.0,0.00019528,2]
[360193534,1746614825510,-1264.98,0.00019528,2]
[360193535,1746614825538,-450.0,0.00019528,2]
[360193536,1746614825567,-450.0,0.00019528,2]
[360193537,1746614825593,-383.1967,0.00019528,2]
[360193538,1746614825621,-1264.98,0.00019528,2]
[360193539,1746614825652,-586.43,0.00019528,2]
[360193540,1746614825681,-586.43,0.00019528,2]
[360193541,1746614825709,-503.33,0.00019528,2]
[360193542,1746614825736,-450.0,0.00019528,2]
[360193543,1746614825766,-450.0,0.00019528,2]
[360193544,1746614825794,-1695.43,0.00019528,2]
[360193545,1746614825826,-1826.21,0.00019528,2]
[360193546,1746614825856,-450.0,0.00019528,2]
[360193547,1746614825886,-518.51,0.00019528,2]
[360193548,1746614825915,-706.13,0.00019528,2]
[360193549,1746614825942,-706.13,0.00019528,2]
[360193550,1746614825968,-450.0,0.00019528,2]
[360193551,1746614826002,-450.0,0.00019528,2]
[360193552,1746614826030,-450.0,0.00019528,2]
[360193553,1746614826058,-450.0,0.00019528,2]
[360193554,1746614826085,-450.0,0.00019528,2]
[360193555,1746614826113,-552.32,0.00019528,2]
[360193556,1746614826143,-450.0,0.00019528,2]
[360193557,1746614826170,-552.32,0.00019528,2]
[360193558,1746614826197,-769.64,0.00019528,2]
[360193559,1746614826225,-769.64,0.00019528,2]
[360193560,1746614826254,-544.16,0.00019528,2]
[360193561,1746614826282,-544.16,0.00019528,2]
[360193562,1746614826311,-1391.75,0.00019528,2]
[360193563,1746614826339,-1374.23,0.00019528,2]
[360193564,1746614826367,-1374.23,0.00019528,2]
[360193565,1746614826396,-526.61,0.00019528,2]
[360193566,1746614826425,-535.20749078,0.00019529,2]
[360193567,1746614826453,-151.0,0.00019529,2]
[360193568,1746614826481,-229.545638,0.00019529,2]
[360193569,1746614826508,-229.545638,0.00019529,2]
[360193570,1746614826535,-151.0,0.00019529,2]
[360193571,1746614826563,-266.980785,0.00019529,2]
[360193572,1746614826591,-266.980785,0.00019529,2]
[360193573,1746614826618,-282.655956,0.00019529,2]
[360193574,1746614826645,-282.655956,0.00019529,2]
[360193575,1746614826672,-247.444593,0.00019529,2]
[360193576,1746614826699,-151.0,0.00019529,2]
[360193577,1746614826726,-151.0,0.00019529,2]
[360193578,1746614826752,-151.0,0.00019529,2]
[360193579,1746614826780,-225.43262,0.00019529,2]
[360193580,1746614826810,-151.0,0.00019529,2]
[360193581,1746614826844,-151.0,0.00019529,2]
[360193582,1746614826874,-151.0,0.00019529,2]
[360193583,1746614826901,-151.0,0.00019529,2]
[360193584,1746614826929,-151.0,0.00019529,2]
[360193585,1746614826955,-151.0,0.00019529,2]
[360193586,1746614826982,-151.0,0.00019529,2]
[360193587,1746614827010,-1667.709225,0.00019529,2]
[360193588,1746614827037,-1667.709225,0.00019529,2]
[360193589,1746614827224,-1667.709225,0.00019529,2]
[360193590,1746614827269,-1667.709225,0.00019529,2]
[360193591,1746614827296,-1667.709225,0.00019529,2]
[360193592,1746614827322,-1667.709225,0.00019529,2]
[360193593,1746614827349,-1667.709225,0.00019529,2]
[360193594,1746614827375,-1667.709225,0.00019529,2]
[360193595,1746614827401,-1667.709225,0.00019529,2]
[360193596,1746614827428,-1667.709225,0.00019529,2]